[Event "Titled Tuesday Blitz November 22 Early 2022"]
[White "Sargissyan, Sargis"]
[Black "Torres Dominguez, David"]
[WhiteFideId "13303210"]
[BlackFideId "2220857"]
[WhiteElo "2109"]
[BlackElo "2037"]
[Result "1-0"]
[Round "04"]
[TimeControl "180+1"]
[Date "2022.11.23"]
[WhiteClock "0:00:03"]
[BlackClock "0:00:01"]

1. c4 {[%clk 0:03:00]}  e5 {[%clk 0:02:59]} 2. Nc3 {[%clk 0:03:00]}  Nc6 {[%clk 0:02:59]} 3. Nf3 {[%clk 0:03:01]}  f5 {[%clk 0:02:59]} 4. d4 {[%clk 0:03:00]}  e4 {[%clk 0:02:59]} 5. Ng5 {[%clk 0:03:00]}  Bb4 {[%clk 0:02:57]} 6. h4 {[%clk 0:02:52]}  Bxc3+ {[%clk 0:02:54]} 7. bxc3 {[%clk 0:02:52]}  Nf6 {[%clk 0:02:51]} 8. h5 {[%clk 0:02:43]}  d6 {[%clk 0:02:46]} 9. h6 {[%clk 0:02:40]}  g6 {[%clk 0:02:46]} 10. Bf4 {[%clk 0:02:35]}  O-O {[%clk 0:02:33]} 11. e3 {[%clk 0:02:33]}  Qe8 {[%clk 0:02:25]} 12. Rb1 {[%clk 0:02:05]}  Nd8 {[%clk 0:02:23]} 13. Qb3 {[%clk 0:01:49]}  Ne6 {[%clk 0:02:13]} 14. g3 {[%clk 0:01:41]}  Nxf4 {[%clk 0:02:11]} 15. gxf4 {[%clk 0:01:41]}  Rb8 {[%clk 0:02:01]} 16. c5+ {[%clk 0:01:35]}  d5 {[%clk 0:01:49]} 17. c4 {[%clk 0:00:56]}  c6 {[%clk 0:01:48]} 18. cxd5 {[%clk 0:00:52]}  cxd5 {[%clk 0:01:46]} 19. Bb5 {[%clk 0:00:43]}  Bd7 {[%clk 0:01:46]} 20. Ke2 {[%clk 0:00:36]}  b6 {[%clk 0:01:11]} 21. Bxd7 {[%clk 0:00:35]}  Qxd7 {[%clk 0:01:10]} 22. Rhc1 {[%clk 0:00:33]}  Rfc8 {[%clk 0:00:28]} 23. Qb5 {[%clk 0:00:20]}  Qxb5+ {[%clk 0:00:26]} 24. Rxb5 {[%clk 0:00:19]}  bxc5 {[%clk 0:00:27]} 25. Rcxc5 {[%clk 0:00:19]}  a6 {[%clk 0:00:21]} 26. Rxc8+ {[%clk 0:00:16]}  Rxc8 {[%clk 0:00:19]} 27. Rb7 {[%clk 0:00:15]}  Ng4 {[%clk 0:00:19]} 28. Rg7+ {[%clk 0:00:15]}  Kf8 {[%clk 0:00:17]} 29. Nxh7+ {[%clk 0:00:14]}  Ke8 {[%clk 0:00:16]} 30. Rxg6 {[%clk 0:00:07]}  Rc2+ {[%clk 0:00:16]} 31. Ke1 {[%clk 0:00:07]}  Rxa2 {[%clk 0:00:15]} 32. Ng5 {[%clk 0:00:04]}  Ra1+ {[%clk 0:00:15]} 33. Kd2 {[%clk 0:00:04]}  Ra2+ {[%clk 0:00:15]} 34. Kc3 {[%clk 0:00:04]}  Rxf2 {[%clk 0:00:11]} 35. h7 {[%clk 0:00:04]}  Rh2 {[%clk 0:00:11]} 36. Rg8+ {[%clk 0:00:04]}  Ke7 {[%clk 0:00:11]} 37. h8=Q {[%clk 0:00:05]}  Rxh8 {[%clk 0:00:11]} 38. Rxh8 {[%clk 0:00:05]}  Nxe3 {[%clk 0:00:12]} 39. Rh7+ {[%clk 0:00:05]}  Kd6 {[%clk 0:00:11]} 40. Rh6+ {[%clk 0:00:06]}  Kd7 {[%clk 0:00:09]} 41. Rxa6 {[%clk 0:00:06]}  Nd1+ {[%clk 0:00:09]} 42. Kd2 {[%clk 0:00:05]}  Nf2 {[%clk 0:00:08]} 43. Nf7 {[%clk 0:00:05]}  e3+ {[%clk 0:00:09]} 44. Kxe3 {[%clk 0:00:05]}  Ng4+ {[%clk 0:00:09]} 45. Kd3 {[%clk 0:00:05]}  Nf2+ {[%clk 0:00:08]} 46. Ke2 {[%clk 0:00:04]}  Ne4 {[%clk 0:00:08]} 47. Ne5+ {[%clk 0:00:05]}  Ke7 {[%clk 0:00:06]} 48. Ke3 {[%clk 0:00:04]}  Nc3 {[%clk 0:00:04]} 49. Rc6 {[%clk 0:00:04]}  Ne4 {[%clk 0:00:02]} 50. Rc7+ {[%clk 0:00:04]}  Kd8 {[%clk 0:00:01]} 51. Rd7+ {[%clk 0:00:04]}  Ke8 {[%clk 0:00:02]} 52. Rxd5 {[%clk 0:00:03]}  Nf6 {[%clk 0:00:02]} 53. Ra5 {[%clk 0:00:03]}  Ne4 {[%clk 0:00:02]} 54. Ra7 {[%clk 0:00:03]}  Nd6 {[%clk 0:00:02]} 55. d5 {[%clk 0:00:02]}  Nb5 {[%clk 0:00:01]} 56. Ra8+ {[%clk 0:00:03]} 1-0


[Site "https://www.chess.com"]

[Event "Titled Tuesday Blitz November 22 Early 2022"]
[White "Sariego Figueredo, Wilfredo"]
[Black "Gabdrakhmanov, Azat"]
[WhiteFideId "3500080"]
[BlackFideId "34189197"]
[WhiteElo "2309"]
[BlackElo "2254"]
[Result "0-1"]
[Round "04"]
[TimeControl "180+1"]
[Date "2022.11.23"]
[WhiteClock "0:00:06"]
[BlackClock "0:01:22"]

1. d4 {[%clk 0:02:59]}  Nf6 {[%clk 0:02:59]} 2. Bf4 {[%clk 0:02:59]}  g6 {[%clk 0:02:58]} 3. Nc3 {[%clk 0:02:57]}  d5 {[%clk 0:02:58]} 4. Nb5 {[%clk 0:02:57]}  Na6 {[%clk 0:02:55]} 5. e3 {[%clk 0:02:57]}  c6 {[%clk 0:02:55]} 6. Nc3 {[%clk 0:02:57]}  Nb8 {[%clk 0:02:53]} 7. Nf3 {[%clk 0:02:44]}  Bg7 {[%clk 0:02:52]} 8. Be2 {[%clk 0:02:41]}  Nbd7 {[%clk 0:02:52]} 9. O-O {[%clk 0:02:40]}  O-O {[%clk 0:02:52]} 10. h3 {[%clk 0:02:38]}  Re8 {[%clk 0:02:50]} 11. Ne5 {[%clk 0:02:38]}  Nxe5 {[%clk 0:02:46]} 12. Bxe5 {[%clk 0:02:39]}  Bf8 {[%clk 0:02:42]} 13. Re1 {[%clk 0:02:29]}  Nd7 {[%clk 0:02:41]} 14. Bh2 {[%clk 0:02:23]}  e5 {[%clk 0:02:42]} 15. Bf3 {[%clk 0:02:11]}  Bg7 {[%clk 0:02:39]} 16. dxe5 {[%clk 0:01:59]}  Nxe5 {[%clk 0:02:39]} 17. Be2 {[%clk 0:01:58]}  Bf5 {[%clk 0:02:37]} 18. Bd3 {[%clk 0:01:48]}  Nxd3 {[%clk 0:02:31]} 19. cxd3 {[%clk 0:01:49]}  d4 {[%clk 0:02:30]} 20. Na4 {[%clk 0:01:30]}  dxe3 {[%clk 0:02:28]} 21. fxe3 {[%clk 0:01:26]}  Qa5 {[%clk 0:02:11]} 22. d4 {[%clk 0:01:17]}  Bh6 {[%clk 0:01:52]} 23. Be5 {[%clk 0:01:07]}  Qd8 {[%clk 0:01:45]} 24. Nc5 {[%clk 0:00:53]}  b6 {[%clk 0:01:43]} 25. Nd3 {[%clk 0:00:43]}  Bxd3 {[%clk 0:01:41]} 26. Qxd3 {[%clk 0:00:35]}  Rxe5 {[%clk 0:01:39]} 27. Qc4 {[%clk 0:00:35]}  Qd5 {[%clk 0:01:37]} 28. Qc3 {[%clk 0:00:27]}  Re6 {[%clk 0:01:35]} 29. Rad1 {[%clk 0:00:18]}  Rae8 {[%clk 0:01:33]} 30. Qa3 {[%clk 0:00:14]}  Re4 {[%clk 0:01:25]} 31. Qxa7 {[%clk 0:00:12]}  Rxe3 {[%clk 0:01:24]} 32. Rxe3 {[%clk 0:00:10]}  Bxe3+ {[%clk 0:01:25]} 33. Kh1 {[%clk 0:00:10]}  Bxd4 {[%clk 0:01:24]} 34. b3 {[%clk 0:00:07]}  Re2 {[%clk 0:01:23]} 35. Qb8+ {[%clk 0:00:06]}  Kg7 {[%clk 0:01:22]} 0-1


[Site "https://www.chess.com"]

[Event "Titled Tuesday Blitz November 22 Early 2022"]
[White "Seo, Jung Min"]
[Black "Kirillov, Dmitry"]
[WhiteFideId "1734687"]
[BlackFideId "34180572"]
[WhiteElo "2455"]
[BlackElo "2095"]
[Result "1-0"]
[Round "04"]
[TimeControl "180+1"]
[Date "2022.11.23"]
[WhiteClock "0:01:11"]
[BlackClock "0:00:02"]

1. e4 {[%clk 0:02:59]}  c6 {[%clk 0:02:59]} 2. d4 {[%clk 0:02:59]}  d5 {[%clk 0:03:00]} 3. e5 {[%clk 0:02:59]}  c5 {[%clk 0:03:00]} 4. Nf3 {[%clk 0:02:57]}  Nc6 {[%clk 0:03:00]} 5. dxc5 {[%clk 0:02:55]}  Bg4 {[%clk 0:03:00]} 6. h3 {[%clk 0:02:50]}  Bxf3 {[%clk 0:02:58]} 7. Qxf3 {[%clk 0:02:50]}  e6 {[%clk 0:02:59]} 8. Qc3 {[%clk 0:02:33]}  d4 {[%clk 0:02:25]} 9. Qc4 {[%clk 0:02:32]}  Nxe5 {[%clk 0:02:19]} 10. Qb5+ {[%clk 0:02:30]}  Qd7 {[%clk 0:02:19]} 11. Bf4 {[%clk 0:02:24]}  Qxb5 {[%clk 0:02:12]} 12. Bxb5+ {[%clk 0:02:23]}  Nc6 {[%clk 0:02:12]} 13. Nd2 {[%clk 0:02:20]}  Bxc5 {[%clk 0:02:10]} 14. Ne4 {[%clk 0:02:20]}  Be7 {[%clk 0:02:05]} 15. Nd6+ {[%clk 0:02:20]}  Bxd6 {[%clk 0:02:05]} 16. Bxd6 {[%clk 0:02:20]}  Ne7 {[%clk 0:02:04]} 17. O-O-O {[%clk 0:02:19]}  Nf5 {[%clk 0:02:03]} 18. Bc5 {[%clk 0:02:17]}  O-O-O {[%clk 0:01:36]} 19. g4 {[%clk 0:02:06]}  Nd6 {[%clk 0:01:34]} 20. Bxc6 {[%clk 0:02:06]}  bxc6 {[%clk 0:01:34]} 21. Rxd4 {[%clk 0:02:04]}  Nb5 {[%clk 0:01:07]} 22. Rxd8+ {[%clk 0:02:04]}  Rxd8 {[%clk 0:01:08]} 23. c4 {[%clk 0:02:03]}  Nd6 {[%clk 0:00:59]} 24. b3 {[%clk 0:02:00]}  a6 {[%clk 0:00:59]} 25. Kc2 {[%clk 0:01:51]}  Ne4 {[%clk 0:00:56]} 26. Be3 {[%clk 0:01:51]}  e5 {[%clk 0:00:52]} 27. f3 {[%clk 0:01:47]}  Ng3 {[%clk 0:00:35]} 28. Re1 {[%clk 0:01:45]}  f5 {[%clk 0:00:20]} 29. Bf2 {[%clk 0:01:45]}  f4 {[%clk 0:00:19]} 30. Rxe5 {[%clk 0:01:43]}  Rd7 {[%clk 0:00:08]} 31. Re1 {[%clk 0:01:38]}  h5 {[%clk 0:00:06]} 32. h4 {[%clk 0:01:31]}  hxg4 {[%clk 0:00:03]} 33. fxg4 {[%clk 0:01:32]}  Rf7 {[%clk 0:00:03]} 34. h5 {[%clk 0:01:30]}  Kc7 {[%clk 0:00:02]} 35. g5 {[%clk 0:01:24]}  Nxh5 {[%clk 0:00:01]} 36. g6 {[%clk 0:01:19]}  Rf6 {[%clk 0:00:02]} 37. Re5 {[%clk 0:01:19]}  Ng3 {[%clk 0:00:01]} 38. Re7+ {[%clk 0:01:19]}  Kd6 {[%clk 0:00:01]} 39. Rxg7 {[%clk 0:01:19]}  Ne4 {[%clk 0:00:01]} 40. Bd4 {[%clk 0:01:17]}  Rf5 {[%clk 0:00:02]} 41. Kd3 {[%clk 0:01:13]}  Nc5+ {[%clk 0:00:02]} 42. Bxc5+ {[%clk 0:01:14]}  Kxc5 {[%clk 0:00:02]} 43. Rf7 {[%clk 0:01:13]}  Rg5 {[%clk 0:00:03]} 44. g7 {[%clk 0:01:12]}  Kd6 {[%clk 0:00:04]} 45. Ke4 {[%clk 0:01:12]}  Ke6 {[%clk 0:00:04]} 46. Ra7 {[%clk 0:01:11]}  a5 {[%clk 0:00:03]} 47. Kxf4 {[%clk 0:01:11]}  Rg6 {[%clk 0:00:03]} 48. Ke4 {[%clk 0:01:09]}  Kd6 {[%clk 0:00:03]} 49. Kd4 {[%clk 0:01:09]}  c5+ {[%clk 0:00:03]} 50. Ke4 {[%clk 0:01:10]}  Rg1 {[%clk 0:00:02]} 51. Kf5 {[%clk 0:01:09]}  Kc6 {[%clk 0:00:01]} 52. Kf6 {[%clk 0:01:10]}  Rf1+ {[%clk 0:00:02]} 53. Kg6 {[%clk 0:01:10]}  Rg1+ {[%clk 0:00:02]} 54. Kh7 {[%clk 0:01:10]}  Rh1+ {[%clk 0:00:03]} 55. Kg8 {[%clk 0:01:11]}  Kb6 {[%clk 0:00:02]} 56. Rf7 {[%clk 0:01:11]} 1-0


[Site "https://www.chess.com"]

[Event "Titled Tuesday Blitz November 22 Early 2022"]
[White "Shaik Sumer Arsh"]
[Black "Garmash, Aliona"]
[WhiteFideId "45020000"]
[BlackFideId "34127620"]
[WhiteElo "2190"]
[BlackElo "1958"]
[Result "1-0"]
[Round "04"]
[TimeControl "180+1"]
[Date "2022.11.23"]
[WhiteClock "0:00:58"]
[BlackClock "0:00:02"]

1. d4 {[%clk 0:03:00]}  d5 {[%clk 0:02:59]} 2. c4 {[%clk 0:03:01]}  c6 {[%clk 0:02:59]} 3. cxd5 {[%clk 0:03:01]}  cxd5 {[%clk 0:02:59]} 4. Nc3 {[%clk 0:03:02]}  Nf6 {[%clk 0:02:58]} 5. Bf4 {[%clk 0:03:02]}  Nc6 {[%clk 0:02:59]} 6. e3 {[%clk 0:03:02]}  a6 {[%clk 0:02:58]} 7. Be2 {[%clk 0:02:58]}  Bf5 {[%clk 0:02:57]} 8. Nf3 {[%clk 0:02:56]}  e6 {[%clk 0:02:56]} 9. Qb3 {[%clk 0:02:54]}  Bd6 {[%clk 0:02:11]} 10. Bxd6 {[%clk 0:02:34]}  Qxd6 {[%clk 0:02:10]} 11. Qxb7 {[%clk 0:02:33]}  O-O {[%clk 0:02:07]} 12. Qb3 {[%clk 0:02:33]}  Rfb8 {[%clk 0:02:02]} 13. Qa3 {[%clk 0:02:33]}  Nb4 {[%clk 0:01:45]} 14. O-O {[%clk 0:02:30]}  Qd8 {[%clk 0:00:48]} 15. Ne1 {[%clk 0:01:33]}  Rb7 {[%clk 0:00:22]} 16. Rc1 {[%clk 0:01:24]}  Qb8 {[%clk 0:00:19]} 17. Na4 {[%clk 0:01:20]}  a5 {[%clk 0:00:14]} 18. Nc5 {[%clk 0:01:19]}  Rb6 {[%clk 0:00:14]} 19. Ned3 {[%clk 0:01:18]}  Nxd3 {[%clk 0:00:14]} 20. Bxd3 {[%clk 0:01:19]}  Rxb2 {[%clk 0:00:12]} 21. Bxf5 {[%clk 0:01:20]}  exf5 {[%clk 0:00:13]} 22. Na6 {[%clk 0:01:07]}  Qb6 {[%clk 0:00:11]} 23. Nc7 {[%clk 0:01:04]}  Rc8 {[%clk 0:00:09]} 24. Nxd5 {[%clk 0:01:03]}  Rxc1 {[%clk 0:00:06]} 25. Nxb6 {[%clk 0:00:58]}  Rxf1+ {[%clk 0:00:05]} 26. Kxf1 {[%clk 0:00:58]}  Rxb6 {[%clk 0:00:05]} 27. Qc5 {[%clk 0:00:58]}  Rb1+ {[%clk 0:00:04]} 28. Ke2 {[%clk 0:00:58]}  g6 {[%clk 0:00:04]} 29. Qxa5 {[%clk 0:00:57]}  Ne4 {[%clk 0:00:04]} 30. f3 {[%clk 0:00:57]}  Rb2+ {[%clk 0:00:04]} 31. Kd3 {[%clk 0:00:58]}  Nf2+ {[%clk 0:00:02]} 32. Kc3 {[%clk 0:00:58]}  Nd1+ {[%clk 0:00:02]} 33. Kd3 {[%clk 0:00:58]}  Nf2+ {[%clk 0:00:02]} 34. Kc4 {[%clk 0:00:58]}  Rc2+ {[%clk 0:00:02]} 35. Kd5 {[%clk 0:00:58]} 1-0


[Site "https://www.chess.com"]

[Event "Titled Tuesday Blitz November 22 Early 2022"]
[White "Sharifov, Mekhriddin"]
[Black "Hoffmann, Asa"]
[WhiteFideId "14701545"]
[BlackFideId "2001470"]
[WhiteElo "2109"]
[BlackElo "2117"]
[Result "1-0"]
[Round "04"]
[TimeControl "180+1"]
[Date "2022.11.23"]
[WhiteClock "0:00:42"]
[BlackClock "0:00:24"]

1. e4 {[%clk 0:03:00]}  d6 {[%clk 0:02:54]} 2. d4 {[%clk 0:03:00]}  Nf6 {[%clk 0:02:53]} 3. Nc3 {[%clk 0:03:01]}  c6 {[%clk 0:02:53]} 4. h3 {[%clk 0:02:59]}  Qa5 {[%clk 0:02:50]} 5. Bd3 {[%clk 0:02:51]}  e5 {[%clk 0:02:50]} 6. Nf3 {[%clk 0:02:51]}  Nbd7 {[%clk 0:02:48]} 7. O-O {[%clk 0:02:51]}  Be7 {[%clk 0:02:48]} 8. a4 {[%clk 0:02:48]}  O-O {[%clk 0:02:43]} 9. Re1 {[%clk 0:02:45]}  Re8 {[%clk 0:02:42]} 10. Bc4 {[%clk 0:02:43]}  h6 {[%clk 0:02:41]} 11. Be3 {[%clk 0:02:34]}  Qc7 {[%clk 0:02:36]} 12. a5 {[%clk 0:02:34]}  Bf8 {[%clk 0:02:32]} 13. d5 {[%clk 0:02:24]}  Nc5 {[%clk 0:02:26]} 14. Nd2 {[%clk 0:02:17]}  cxd5 {[%clk 0:02:23]} 15. Bxd5 {[%clk 0:02:15]}  Be6 {[%clk 0:02:20]} 16. b4 {[%clk 0:01:53]}  Bxd5 {[%clk 0:02:14]} 17. Nxd5 {[%clk 0:01:49]}  Nxd5 {[%clk 0:02:11]} 18. exd5 {[%clk 0:01:50]}  Nd7 {[%clk 0:02:09]} 19. c4 {[%clk 0:01:50]}  f5 {[%clk 0:01:59]} 20. f3 {[%clk 0:01:44]}  Be7 {[%clk 0:01:58]} 21. Qb3 {[%clk 0:01:43]}  Kh8 {[%clk 0:01:48]} 22. Rac1 {[%clk 0:01:42]}  b6 {[%clk 0:01:46]} 23. a6 {[%clk 0:01:30]}  Rac8 {[%clk 0:01:44]} 24. Nb1 {[%clk 0:01:14]}  Nf6 {[%clk 0:01:42]} 25. Na3 {[%clk 0:01:13]}  Qd7 {[%clk 0:01:42]} 26. Nb5 {[%clk 0:01:13]}  Nxd5 {[%clk 0:01:26]} 27. Rcd1 {[%clk 0:01:11]}  Nxe3 {[%clk 0:01:19]} 28. Rxe3 {[%clk 0:01:11]}  Qe6 {[%clk 0:01:10]} 29. Rd5 {[%clk 0:01:08]}  Red8 {[%clk 0:00:55]} 30. Nxa7 {[%clk 0:01:06]}  Ra8 {[%clk 0:00:48]} 31. Nc6 {[%clk 0:01:06]}  Rxa6 {[%clk 0:00:41]} 32. Nxd8 {[%clk 0:01:04]}  Ra1+ {[%clk 0:00:33]} 33. Kh2 {[%clk 0:01:01]}  Bxd8 {[%clk 0:00:32]} 34. Qb2 {[%clk 0:00:48]}  Rf1 {[%clk 0:00:27]} 35. Qe2 {[%clk 0:00:46]}  Rb1 {[%clk 0:00:25]} 36. Qd3 {[%clk 0:00:46]}  Rb2 {[%clk 0:00:24]} 37. Rxd6 {[%clk 0:00:42]} 1-0


[Site "https://www.chess.com"]

[Event "Titled Tuesday Blitz November 22 Early 2022"]
[White "Skibbe, Willi"]
[Black "Streltsov, Alexey"]
[WhiteFideId "4682190"]
[BlackFideId "24104434"]
[WhiteElo "2363"]
[BlackElo "2544"]
[Result "0-1"]
[Round "04"]
[TimeControl "180+1"]
[Date "2022.11.23"]
[WhiteClock "0:00:08"]
[BlackClock "0:00:16"]

1. Nf3 {[%clk 0:03:00]}  d5 {[%clk 0:02:59]} 2. g3 {[%clk 0:03:01]}  Nc6 {[%clk 0:02:59]} 3. c4 {[%clk 0:02:54]}  d4 {[%clk 0:02:59]} 4. Bg2 {[%clk 0:02:52]}  e5 {[%clk 0:02:27]} 5. d3 {[%clk 0:02:51]}  Nf6 {[%clk 0:02:22]} 6. O-O {[%clk 0:02:50]}  Be7 {[%clk 0:02:23]} 7. b4 {[%clk 0:02:44]}  Nd7 {[%clk 0:02:06]} 8. b5 {[%clk 0:02:39]}  Ncb8 {[%clk 0:02:07]} 9. e3 {[%clk 0:02:34]}  dxe3 {[%clk 0:02:03]} 10. fxe3 {[%clk 0:02:32]}  O-O {[%clk 0:02:04]} 11. d4 {[%clk 0:02:31]}  Bf6 {[%clk 0:02:03]} 12. Bb2 {[%clk 0:02:28]}  exd4 {[%clk 0:01:57]} 13. exd4 {[%clk 0:02:28]}  c5 {[%clk 0:01:57]} 14. Qc2 {[%clk 0:02:16]}  cxd4 {[%clk 0:01:54]} 15. Nxd4 {[%clk 0:02:09]}  Qb6 {[%clk 0:01:46]} 16. Qf2 {[%clk 0:02:05]}  Nc5 {[%clk 0:01:41]} 17. Rd1 {[%clk 0:01:35]}  Bg4 {[%clk 0:01:28]} 18. Rd2 {[%clk 0:01:03]}  Na4 {[%clk 0:01:28]} 19. Ba3 {[%clk 0:00:56]}  Rd8 {[%clk 0:01:26]} 20. c5 {[%clk 0:00:54]}  Nxc5 {[%clk 0:01:14]} 21. Nb3 {[%clk 0:00:38]}  Rxd2 {[%clk 0:00:27]} 22. N1xd2 {[%clk 0:00:38]}  Nxb3 {[%clk 0:00:27]} 23. Qxb6 {[%clk 0:00:11]}  axb6 {[%clk 0:00:27]} 24. Re1 {[%clk 0:00:11]}  Nd7 {[%clk 0:00:17]} 25. Nxb3 {[%clk 0:00:08]}  Rxa3 {[%clk 0:00:16]} 26. Re8+ {[%clk 0:00:08]}  Nf8 {[%clk 0:00:17]} 27. Bxb7 {[%clk 0:00:08]}  Rxa2 {[%clk 0:00:16]} 28. Bc6 {[%clk 0:00:08]}  Be6 {[%clk 0:00:16]} 0-1


[Site "https://www.chess.com"]

[Event "Titled Tuesday Blitz November 22 Early 2022"]
[White "Skliarov, Viktor"]
[Black "Devaev, Alexander"]
[WhiteFideId "14106736"]
[BlackFideId "4169395"]
[WhiteElo "2284"]
[BlackElo "2225"]
[Result "1-0"]
[Round "04"]
[TimeControl "180+1"]
[Date "2022.11.23"]
[WhiteClock "0:00:15"]
[BlackClock "0:00:03"]

1. e4 {[%clk 0:03:00]}  c6 {[%clk 0:02:59]} 2. d4 {[%clk 0:03:00]}  d5 {[%clk 0:02:59]} 3. e5 {[%clk 0:03:01]}  Bf5 {[%clk 0:02:59]} 4. Nf3 {[%clk 0:03:01]}  e6 {[%clk 0:02:59]} 5. Be2 {[%clk 0:03:01]}  Nd7 {[%clk 0:02:59]} 6. O-O {[%clk 0:03:01]}  h6 {[%clk 0:03:00]} 7. a4 {[%clk 0:03:01]}  a6 {[%clk 0:03:01]} 8. a5 {[%clk 0:03:00]}  Rc8 {[%clk 0:02:54]} 9. Nbd2 {[%clk 0:02:57]}  Ne7 {[%clk 0:02:51]} 10. b4 {[%clk 0:02:56]}  Bg6 {[%clk 0:02:37]} 11. c3 {[%clk 0:02:52]}  Nf5 {[%clk 0:02:36]} 12. g4 {[%clk 0:02:46]}  Nh4 {[%clk 0:02:33]} 13. Nxh4 {[%clk 0:02:46]}  Qxh4 {[%clk 0:02:33]} 14. f4 {[%clk 0:02:47]}  f5 {[%clk 0:01:56]} 15. Bd3 {[%clk 0:02:06]}  Be7 {[%clk 0:00:54]} 16. gxf5 {[%clk 0:02:04]}  Bxf5 {[%clk 0:00:54]} 17. Bxf5 {[%clk 0:02:01]}  exf5 {[%clk 0:00:55]} 18. Nf3 {[%clk 0:02:01]}  Qh5 {[%clk 0:00:52]} 19. c4 {[%clk 0:01:27]}  Qf7 {[%clk 0:00:40]} 20. Re1 {[%clk 0:01:01]}  dxc4 {[%clk 0:00:33]} 21. e6 {[%clk 0:00:56]}  Qg6+ {[%clk 0:00:33]} 22. Kh1 {[%clk 0:00:57]}  Nf6 {[%clk 0:00:34]} 23. Ne5 {[%clk 0:00:54]}  Qh5 {[%clk 0:00:33]} 24. Qxh5+ {[%clk 0:00:25]}  Nxh5 {[%clk 0:00:33]} 25. Bd2 {[%clk 0:00:25]}  Nf6 {[%clk 0:00:19]} 26. Nxc4 {[%clk 0:00:24]}  Nd5 {[%clk 0:00:19]} 27. Rab1 {[%clk 0:00:24]}  O-O {[%clk 0:00:17]} 28. Ne5 {[%clk 0:00:22]}  Kh7 {[%clk 0:00:16]} 29. Nd7 {[%clk 0:00:21]}  Rfe8 {[%clk 0:00:14]} 30. Kg2 {[%clk 0:00:21]}  Bd6 {[%clk 0:00:14]} 31. Kf3 {[%clk 0:00:20]}  Re7 {[%clk 0:00:13]} 32. Nc5 {[%clk 0:00:19]}  Rce8 {[%clk 0:00:12]} 33. Re2 {[%clk 0:00:18]}  Bxc5 {[%clk 0:00:12]} 34. bxc5 {[%clk 0:00:18]}  Nf6 {[%clk 0:00:08]} 35. Be1 {[%clk 0:00:17]}  Nd5 {[%clk 0:00:03]} 36. Bh4 {[%clk 0:00:17]}  Rxe6 {[%clk 0:00:03]} 37. Rxe6 {[%clk 0:00:17]}  Rxe6 {[%clk 0:00:04]} 38. Rxb7 {[%clk 0:00:17]}  Re3+ {[%clk 0:00:04]} 39. Kf2 {[%clk 0:00:18]}  Ra3 {[%clk 0:00:03]} 40. Rd7 {[%clk 0:00:18]}  Rxa5 {[%clk 0:00:03]} 41. Rd6 {[%clk 0:00:18]}  Ra2+ {[%clk 0:00:03]} 42. Ke1 {[%clk 0:00:18]}  Ra1+ {[%clk 0:00:03]} 43. Kd2 {[%clk 0:00:18]}  Ra2+ {[%clk 0:00:04]} 44. Kc1 {[%clk 0:00:18]}  Rxh2 {[%clk 0:00:05]} 45. Bd8 {[%clk 0:00:18]}  Rh1+ {[%clk 0:00:05]} 46. Kc2 {[%clk 0:00:18]}  Rh2+ {[%clk 0:00:06]} 47. Kb3 {[%clk 0:00:18]}  Rh3+ {[%clk 0:00:06]} 48. Ka4 {[%clk 0:00:18]}  Rh1 {[%clk 0:00:05]} 49. Rxc6 {[%clk 0:00:18]}  Ra1+ {[%clk 0:00:06]} 50. Kb3 {[%clk 0:00:18]}  a5 {[%clk 0:00:06]} 51. Ra6 {[%clk 0:00:16]}  Nxf4 {[%clk 0:00:05]} 52. c6 {[%clk 0:00:15]}  Nd5 {[%clk 0:00:04]} 53. Rxa5 {[%clk 0:00:14]}  Rxa5 {[%clk 0:00:03]} 54. Bxa5 {[%clk 0:00:14]}  f4 {[%clk 0:00:04]} 55. Kc4 {[%clk 0:00:14]}  f3 {[%clk 0:00:04]} 56. Be1 {[%clk 0:00:14]}  Nc7 {[%clk 0:00:03]} 57. d5 {[%clk 0:00:14]}  g5 {[%clk 0:00:03]} 58. d6 {[%clk 0:00:15]}  Ne6 {[%clk 0:00:04]} 59. c7 {[%clk 0:00:15]}  g4 {[%clk 0:00:02]} 60. c8=Q {[%clk 0:00:16]}  f2 {[%clk 0:00:03]} 61. Bxf2 {[%clk 0:00:15]} 1-0


[Site "https://www.chess.com"]

[Event "Titled Tuesday Blitz November 22 Early 2022"]
[White "Stijve, Theo"]
[Black "Papp, Levente"]
[WhiteFideId "1331132"]
[BlackFideId "751243"]
[WhiteElo "2256"]
[BlackElo "2380"]
[Result "1-0"]
[Round "04"]
[TimeControl "180+1"]
[Date "2022.11.23"]
[WhiteClock "0:00:19"]
[BlackClock "0:00:01"]

1. Nf3 {[%clk 0:03:00]}  Nc6 {[%clk 0:02:58]} 2. d4 {[%clk 0:03:00]}  d5 {[%clk 0:02:57]} 3. g3 {[%clk 0:02:59]}  Nf6 {[%clk 0:02:55]} 4. Bg2 {[%clk 0:02:59]}  g6 {[%clk 0:02:54]} 5. O-O {[%clk 0:02:59]}  Bg7 {[%clk 0:02:54]} 6. Bf4 {[%clk 0:02:48]}  O-O {[%clk 0:02:53]} 7. Ne5 {[%clk 0:02:44]}  Ne4 {[%clk 0:02:49]} 8. Nxc6 {[%clk 0:02:41]}  bxc6 {[%clk 0:02:48]} 9. c3 {[%clk 0:02:33]}  c5 {[%clk 0:02:41]} 10. dxc5 {[%clk 0:02:30]}  e5 {[%clk 0:02:35]} 11. Be3 {[%clk 0:02:18]}  c6 {[%clk 0:02:34]} 12. Bxe4 {[%clk 0:02:11]}  dxe4 {[%clk 0:02:34]} 13. Qxd8 {[%clk 0:02:11]}  Rxd8 {[%clk 0:02:35]} 14. Nd2 {[%clk 0:02:11]}  f5 {[%clk 0:02:25]} 15. Rfe1 {[%clk 0:01:55]}  Be6 {[%clk 0:02:09]} 16. b3 {[%clk 0:01:50]}  Rab8 {[%clk 0:01:59]} 17. Rad1 {[%clk 0:01:46]}  h6 {[%clk 0:01:52]} 18. h4 {[%clk 0:01:44]}  Kh7 {[%clk 0:01:45]} 19. f3 {[%clk 0:01:41]}  exf3 {[%clk 0:01:32]} 20. Nxf3 {[%clk 0:01:37]}  a5 {[%clk 0:01:22]} 21. Rd6 {[%clk 0:01:22]}  Bd5 {[%clk 0:00:52]} 22. c4 {[%clk 0:01:15]}  Be4 {[%clk 0:00:52]} 23. Red1 {[%clk 0:01:09]}  Re8 {[%clk 0:00:47]} 24. Rd7 {[%clk 0:01:07]}  a4 {[%clk 0:00:45]} 25. Nd2 {[%clk 0:00:59]}  Bc2 {[%clk 0:00:45]} 26. Rc1 {[%clk 0:00:55]}  axb3 {[%clk 0:00:45]} 27. axb3 {[%clk 0:00:55]}  Bxb3 {[%clk 0:00:46]} 28. Ra1 {[%clk 0:00:47]}  Bc2 {[%clk 0:00:33]} 29. Raa7 {[%clk 0:00:46]}  Rg8 {[%clk 0:00:33]} 30. Nf3 {[%clk 0:00:42]}  Rb1+ {[%clk 0:00:22]} 31. Kf2 {[%clk 0:00:41]}  e4 {[%clk 0:00:15]} 32. Ne1 {[%clk 0:00:31]}  g5 {[%clk 0:00:06]} 33. hxg5 {[%clk 0:00:29]}  hxg5 {[%clk 0:00:05]} 34. Nxc2 {[%clk 0:00:28]}  Kg6 {[%clk 0:00:05]} 35. Rd6+ {[%clk 0:00:24]}  Kh5 {[%clk 0:00:05]} 36. Rxc6 {[%clk 0:00:24]}  Be5 {[%clk 0:00:02]} 37. Rh7+ {[%clk 0:00:23]}  Kg4 {[%clk 0:00:03]} 38. Rch6 {[%clk 0:00:19]}  f4 {[%clk 0:00:02]} 39. gxf4 {[%clk 0:00:18]}  gxf4 {[%clk 0:00:03]} 40. Rh4+ {[%clk 0:00:19]}  Kf5 {[%clk 0:00:03]} 41. R7h5+ {[%clk 0:00:19]}  Ke6 {[%clk 0:00:03]} 42. Bxf4 {[%clk 0:00:19]}  Bf6 {[%clk 0:00:03]} 43. Rh6 {[%clk 0:00:19]}  Rbg1 {[%clk 0:00:03]} 44. Ne3 {[%clk 0:00:19]}  Rc1 {[%clk 0:00:02]} 45. c6 {[%clk 0:00:19]}  Rb1 {[%clk 0:00:02]} 46. c7 {[%clk 0:00:19]}  Rb7 {[%clk 0:00:01]} 47. Nd5 {[%clk 0:00:19]}  Kf7 {[%clk 0:00:01]} 48. Rxf6+ {[%clk 0:00:19]}  Kg7 {[%clk 0:00:02]} 49. Rg4+ {[%clk 0:00:19]}  Kh7 {[%clk 0:00:02]} 50. Rf7+ {[%clk 0:00:19]}  Kh8 {[%clk 0:00:01]} 51. Rh4# {[%clk 0:00:19]} 1-0


[Site "https://www.chess.com"]